bitfinex/quotes_SOLUSD_20240626
["timestamp","ask_amount","ask_price","bid_price","bid_amount"]
[1719419319988,16.3812,136.56,136.5,7.3256]
[1719419320187,20.0,136.55,136.5,7.3256]
[1719419320400,20.0,136.55,136.49,18.3163]
[1719419320401,7.3241,136.54,136.49,25.6427]
[1719419320578,27.3234,136.55,136.51,7.3253]
[1719419320916,27.3234,136.55,136.51,18.3135]
[1719419321085,20.0,136.55,136.51,25.6389]
[1719419321393,20.0,136.55,136.52,7.3248]
[1719419322787,20.0,136.55,136.48,22.1199]
[1719419322988,6.22070152,136.58,136.54,7.3238]
[1719419323188,6.22070152,136.58,136.53,18.3106]
[1719419323189,30.0,136.55,136.53,25.6347]
[1719419324307,54.3922,136.57,136.53,25.6347]
[1719419324510,47.07,136.57,136.53,25.6347]
[1719419325200,54.3923,136.57,136.52,7.3247]
[1719419325994,47.07,136.57,136.53,7.3243]
[1719419326204,47.07,136.57,136.53,25.6351]
[1719419329614,47.07,136.57,136.54,7.3238]
[1719419330115,47.07,136.57,136.53,25.6349]
[1719419331020,20.0,136.57,136.53,25.6349]
[1719419331194,47.07,136.57,136.54,7.3236]
[1719419331395,47.07,136.57,136.53,25.635]
[1719419331591,47.07,136.57,136.54,7.3237]
[1719419331592,20.0,136.57,136.54,7.3237]
[1719419331898,20.0,136.57,136.55,7.3232]
[1719419332214,27.07,136.56,136.55,25.631]
[1719419332710,27.07,136.56,136.55,18.3078]
[1719419333106,7.3212,136.59,136.55,18.3078]
[1719419333414,20.0,136.58,136.55,18.3078]
[1719419333619,20.0,136.58,136.54,7.3236]
[1719419334396,20.0,136.58,136.5,18.3139]
[1719419334695,303.52923905,136.62,136.51,0.17]
[1719419334696,20.0,136.61,136.51,0.17]
[1719419334896,2.10275977,136.6,136.51,0.17]
[1719419335137,8.32346129,136.6,136.51,0.17]
[1719419335314,7.3234,136.55,136.51,7.4954]
[1719419335710,7.3239,136.54,136.5,18.3139]
[1719419336221,15.0236,136.57,136.5,25.6396]
[1719419336222,7.3234,136.55,136.5,25.6396]
[1719419336515,20.0,136.54,136.5,25.6396]
[1719419337214,20.0,136.54,136.51,7.3254]
[1719419337420,20.0,136.55,136.51,7.3254]
[1719419337814,20.0,136.55,136.5,18.3139]
[1719419337815,20.0,136.55,136.52,18.3119]
[1719419338015,20.0,136.56,136.53,7.3242]
[1719419339022,20.0,136.56,136.54,18.3091]
[1719419339234,31.15408162,136.59,136.54,25.6327]
[1719419340028,23.83268162,136.59,136.54,25.6327]
[1719419340207,11.15398162,136.59,136.54,25.6327]
[1719419340409,20.0,136.58,136.54,25.6327]
[1719419341805,20.0,136.58,136.55,7.3232]
[1719419342409,20.0,136.58,136.54,24.5773]
[1719419342615,27.07,136.56,136.55,7.3233]
[1719419344227,27.07,136.56,136.54,31.9009]
[1719419344438,7.3217,136.58,136.54,24.5773]
[1719419344732,7.3217,136.58,136.54,31.901]
[1719419345121,7.3214,136.59,136.54,31.901]
[1719419345314,20.0,136.58,136.54,31.901]
[1719419345719,20.0,136.58,136.55,7.3232]
[1719419345915,20.0,136.59,136.55,7.3232]
[1719419346316,27.3215,136.59,136.54,31.901]
[1719419347635,27.3215,136.59,136.55,7.3232]
[1719419348029,20.0,136.59,136.55,7.3232]
[1719419348335,27.07,136.56,136.55,7.3232]
[1719419348537,27.07,136.56,136.54,24.5773]
[1719419348723,27.07,136.55,136.54,31.901]
[1719419348926,27.07,136.55,136.54,32.071]
[1719419349144,20.0,136.59,136.56,25.6292]
[1719419349442,20.0,136.6,136.56,25.6292]
[1719419349617,27.3207,136.6,136.56,25.6292]
[1719419349820,27.3207,136.6,136.56,18.3069]
[1719419350517,27.07,136.57,136.56,18.3069]
[1719419350718,27.07,136.57,136.56,25.6296]
[1719419351746,27.3206,136.6,136.56,25.6296]
[1719419352119,27.3206,136.6,136.56,18.3069]
[1719419352325,20.0,136.6,136.54,24.7477]
[1719419352543,27.07,136.55,136.54,24.7477]
[1719419353255,27.07,136.55,136.54,32.0714]
[1719419354458,27.07,136.55,136.53,15.5264]
[1719419354661,27.07,136.54,136.51,24.5889]
[1719419354950,7.3229,136.56,136.51,31.9141]
[1719419355159,7.3229,136.56,136.52,7.3249]
[1719419355321,7.3224,136.57,136.52,7.3249]
[1719419355520,7.3224,136.57,136.51,24.5889]
[1719419355521,20.0,136.56,136.53,7.3242]
[1719419355740,20.0,136.56,136.54,7.3237]
[1719419356128,20.0,136.59,136.54,7.3237]
[1719419356327,20.0,136.59,136.53,18.3109]
[1719419356328,20.0,136.59,136.55,7.3233]
[1719419356534,27.07,136.56,136.55,7.3233]
[1719419356774,47.07,136.56,136.55,7.3233]
[1719419357359,77.07,136.56,136.55,7.3233]
[1719419358231,47.07,136.56,136.55,7.3233]
[1719419358640,47.07,136.56,136.54,25.632]
[1719419358841,20.0,136.56,136.54,18.3084]
[1719419359033,20.0,136.57,136.54,18.3084]
[1719419361527,7.3206,136.6,136.55,7.323]
[1719419361761,20.0,136.59,136.56,7.3227]
[1719419362838,27.07,136.57,136.56,7.3227]
[1719419363327,20.0,136.6,136.56,25.6296]
[1719419364761,20.73138937,136.63,136.58,18.3042]
[1719419364952,38.22148162,136.64,136.59,7.3206]
[1719419365149,20.0,136.63,136.59,7.3206]
[1719419365868,20.0,136.63,136.58,18.3042]
[1719419366059,7.3175,136.66,136.6,18.3014]
[1719419366234,20.0,136.65,136.62,7.3195]
[1719419366747,27.07,136.63,136.6,18.3014]
[1719419366929,27.3179,136.65,136.6,25.6218]
[1719419367133,15.7023,136.64,136.55,15.3132]
[1719419367363,15.7023,136.64,136.57,7.3222]
[1719419367364,37.3197,136.62,136.57,7.3222]
[1719419367534,20.0,136.61,136.58,7.3216]
[1719419367735,20.0,136.61,136.56,18.3066]
[1719419367736,27.07,136.59,136.56,18.3066]
[1719419367947,27.3204,136.61,136.56,18.3066]
[1719419368149,20.0,136.61,136.57,7.3219]
[1719419368868,20.0,136.61,136.56,18.3066]
[1719419368869,20.0,136.61,136.58,7.3216]
[1719419369463,20.0,136.61,136.56,18.3066]
[1719419369843,20.0,136.63,136.56,18.3066]
[1719419370152,27.3192,136.63,136.58,18.3039]
[1719419370356,27.3192,136.63,136.58,25.6251]
[1719419370566,27.3192,136.63,136.59,7.321]
[1719419371169,27.3192,136.63,136.58,25.6255]
[1719419372267,20.0,136.64,136.6,18.3015]
[1719419372569,27.3181,136.65,136.6,25.6219]
[1719419372873,20.0,136.65,136.61,7.3199]
[1719419373371,27.318,136.65,136.61,7.3199]
[1719419373571,7.3186,136.64,136.6,18.3015]
[1719419373945,27.3181,136.65,136.6,25.6218]
[1719419374244,27.3181,136.65,136.62,25.618]
[1719419374245,20.0,136.65,136.62,25.618]
[1719419374441,20.0,136.66,136.62,25.618]
[1719419375269,27.3174,136.66,136.62,25.618]
[1719419376474,27.3174,136.66,136.62,18.2989]
[1719419376673,7.3181,136.65,136.61,7.3198]
[1719419376855,20.0,136.64,136.6,7.3205]
[1719419377352,20.0,136.64,136.61,7.3199]
[1719419378468,20.0,136.65,136.61,7.3199]
[1719419379266,27.318,136.65,136.61,7.3199]
[1719419379466,20.0,136.65,136.62,7.3195]
[1719419380054,20.0,136.65,136.61,25.6197]
[1719419380878,27.318,136.65,136.61,18.2999]
[1719419381378,7.3185,136.64,136.6,7.3204]
[1719419381581,20.0,136.63,136.6,7.3204]
[1719419381985,7.3205,136.61,136.56,18.3057]
[1719419382159,27.3207,136.6,136.56,25.6281]
[1719419382357,7.3207,136.6,136.56,25.6281]
[1719419382687,7.3203,136.61,136.56,25.6281]
[1719419382976,20.0,136.6,136.56,25.6281]
[1719419383180,20.0,136.6,136.57,7.322]
[1719419383479,18.2964,136.64,136.56,25.6282]
[1719419383480,27.3202,136.61,136.56,25.6282]
[1719419383991,20.0,136.61,136.58,7.3213]
[1719419384193,20.0,136.62,136.58,7.3213]
[1719419384360,27.3196,136.62,136.58,7.3213]
[1719419384559,27.3196,136.62,136.57,7.322]
[1719419384787,7.3201,136.61,136.57,7.322]
[1719419384986,20.0,136.6,136.57,7.322]
[1719419385562,20.0,136.6,136.56,25.6282]
[1719419386585,20.0,136.6,136.58,7.3212]
[1719419386893,7.3192,136.63,136.57,18.3043]
[1719419386894,20.0,136.62,136.57,18.3043]
[1719419387073,20.0,136.62,136.59,7.321]
[1719419387386,30.0,136.6,136.59,7.321]
[1719419387567,30.0,136.6,136.58,7.3214]
[1719419388776,27.3196,136.62,136.58,7.3214]
[1719419390294,20.0,136.62,136.59,7.321]
[1719419390467,20.0,136.64,136.59,7.321]
[1719419391369,20.0,136.64,136.57,18.3043]
[1719419391370,7.3193,136.63,136.58,7.3215]
[1719419391567,20.0,136.62,136.58,7.3215]
[1719419393098,20.0,136.62,136.55,40.0059]
[1719419393277,20.0,136.64,136.56,0.17]
[1719419394087,7.3202,136.61,136.56,7.4924]
[1719419394376,20.0,136.6,136.55,7.3232]
[1719419394572,27.3208,136.6,136.55,7.3232]
[1719419394770,27.3208,136.6,136.56,7.3227]
[1719419394972,20.0,136.6,136.56,18.3068]
[1719419395226,20.0,136.61,136.56,18.3068]
[1719419395768,20.0,136.61,136.57,7.322]
[1719419397606,20.0,136.61,136.58,7.3216]
[1719419398178,20.0,136.61,136.57,7.322]
[1719419399901,7.3186,136.64,136.6,7.3206]
[1719419400095,20.0,136.63,136.58,25.6249]
[1719419400299,7.319,136.63,136.58,25.6249]
[1719419400505,20.0,136.62,136.55,18.3076]
[1719419400796,7.3223,136.57,136.53,15.9329]
[1719419400976,34.3923,136.57,136.53,7.3242]
[1719419401314,7.3206,136.6,136.55,7.3231]
[1719419401478,20.0,136.59,136.55,7.3231]
[1719419401685,20.0,136.59,136.57,7.3219]
[1719419402001,16.1554,136.61,136.58,7.3213]
[1719419402175,7.3196,136.62,136.57,7.3218]
[1719419402380,20.0,136.61,136.58,7.3214]
[1719419403112,20.0,136.62,136.6,7.3203]
[1719419403281,27.3185,136.64,136.59,7.3206]
[1719419404185,20.0,136.64,136.6,7.3203]
[1719419404397,20.0,136.64,136.6,18.3015]
[1719419404789,20.0,136.64,136.6,25.6219]
[1719419404991,27.3185,136.64,136.6,18.3015]
[1719419405378,7.3191,136.63,136.59,7.3209]
[1719419405586,20.0,136.62,136.58,7.3216]
[1719419405791,20.0,136.62,136.57,24.8875]
[1719419405792,27.3196,136.62,136.57,32.2095]
[1719419405978,27.3196,136.62,136.54,63.6874]
[1719419405979,20.0,136.62,136.54,24.457]
[1719419406180,30.0,136.6,136.52,15.7529]
[1719419406381,27.07,136.53,136.52,23.0776]
[1719419406596,7.3219,136.58,136.53,7.3242]
[1719419406906,27.07,136.54,136.53,7.3242]
[1719419407302,27.3213,136.59,136.53,25.635]
[1719419407702,27.3213,136.59,136.54,7.3237]
[1719419408009,20.0,136.59,136.55,7.3232]
[1719419408183,20.0,136.59,136.56,7.3226]
[1719419408383,30.0,136.6,136.52,15.7529]
[1719419408617,30.0,136.6,136.57,18.3053]
[1719419408917,20.0,136.59,136.57,18.3053]
[1719419409280,20.0,136.59,136.54,18.3084]
[1719419409686,20.0,136.59,136.56,7.3226]
[1719419409979,20.0,136.6,136.56,7.3226]
[1719419410809,27.3208,136.6,136.55,7.323]
[1719419411804,16.0244,136.59,136.51,18.313]
[1719419412004,7.3226,136.57,136.51,18.313]
[1719419412207,20.0,136.56,136.53,18.3108]
[1719419412714,20.0,136.56,136.54,7.3235]
[1719419412911,20.0,136.58,136.55,7.3231]
[1719419413281,20.0,136.58,136.56,7.3227]
[1719419413490,20.0,136.58,136.49,16.1015]
[1719419413708,7.3207,136.6,136.55,7.323]
[1719419414008,26.4102,136.59,136.46,23.1287]
[1719419414205,30.0,136.56,136.5,25.6402]
[1719419414511,20.0,136.55,136.5,18.3148]
[1719419414711,27.3234,136.55,136.51,7.3252]
[1719419415013,27.3234,136.55,136.5,25.6407]
[1719419415394,7.3248,136.53,136.47,25.646]
[1719419415590,20.0,136.52,136.46,7.328]
[1719419415786,50.0,136.52,136.46,7.328]
[1719419415992,7.3263,136.5,136.45,7.3286]
[1719419416199,20.0,136.49,136.46,7.328]
[1719419416598,20.0,136.49,136.47,7.3275]
[1719419416808,20.0,136.51,136.47,7.3275]
[1719419417515,27.3255,136.51,136.46,25.648]
[1719419417733,20.0,136.51,136.47,7.3274]
[1719419417908,27.3255,136.51,136.47,7.3274]
[1719419418092,20.0,136.51,136.47,7.3274]
[1719419418621,27.3255,136.51,136.47,7.3274]
[1719419418814,7.326,136.5,136.46,25.6481]
[1719419419124,20.0,136.49,136.46,25.6481]
[1719419419303,27.3256,136.51,136.46,25.6481]
[1719419419705,20.0,136.51,136.45,7.3286]
[1719419419897,7.3261,136.5,136.44,36.6444]
[1719419420098,20.0,136.49,136.45,18.3216]
[1719419420622,20.0,136.49,136.46,7.3278]
[1719419420822,20.0,136.5,136.47,18.3187]
[1719419421026,20.0,136.51,136.48,7.3269]
[1719419421397,20.0,136.51,136.47,25.6461]
[1719419423717,15.8135,136.5,136.39,22.905]
[1719419423918,30.0,136.48,136.39,59.5625]
[1719419424122,30.0,136.48,136.44,7.3291]
[1719419424308,20.0,136.47,136.44,7.3291]
[1719419425118,20.0,136.47,136.43,25.6535]
[1719419425323,27.3277,136.47,136.43,25.6535]
[1719419426131,7.3283,136.46,136.4,18.3274]
[1719419426308,20.0,136.45,136.39,59.7325]
[1719419426506,20.0,136.45,136.4,0.17]
[1719419426807,20.0,136.45,136.42,25.6557]
[1719419427015,20.0,136.46,136.42,25.6557]
[1719419428323,30.0,136.48,136.44,18.3228]
[1719419428625,30.0,136.48,136.44,25.6514]
[1719419428826,20.0,136.47,136.45,7.3284]
[1719419429424,20.0,136.49,136.45,7.3284]
[1719419429725,27.3266,136.49,136.44,25.6518]
[1719419430233,7.3271,136.48,136.44,18.3228]
[1719419430523,20.0,136.47,136.41,18.3259]
[1719419430825,7.3283,136.46,136.41,25.6562]
[1719419431125,20.0,136.45,136.41,25.6562]
[1719419431521,36.0497,136.45,136.41,25.6562]
[1719419432227,36.0497,136.45,136.38,18.3299]
[1719419432419,7.3303,136.42,136.38,18.3299]
[1719419432609,7.3299,136.43,136.38,25.6621]
[1719419432809,20.0,136.42,136.39,7.3317]
[1719419433329,20.0,136.42,136.4,7.3311]
[1719419433537,20.0,136.43,136.4,7.3311]
[1719419434324,20.0,136.44,136.41,7.3306]
[1719419434727,20.0,136.44,136.4,25.6594]
[1719419434935,20.0,136.44,136.41,7.3308]
[1719419435231,20.0,136.44,136.4,25.6594]
[1719419435715,20.0,136.44,136.4,18.3283]
[1719419435920,16.0497,136.45,136.43,7.3296]
[1719419436133,16.0497,136.45,136.42,25.6554]
[1719419436134,20.0,136.44,136.42,25.6554]
[1719419436925,20.0,136.45,136.42,25.6554]
[1719419437131,20.0,136.45,136.42,18.3253]
[1719419437634,27.3288,136.45,136.41,7.3307]
[1719419437928,20.0,136.45,136.41,7.3307]
[1719419438228,7.3283,136.46,136.41,7.3307]
[1719419438420,20.0,136.45,136.41,7.3307]
[1719419439538,20.0,136.45,136.42,7.3301]
[1719419440034,27.3287,136.45,136.4,25.6583]
[1719419440255,27.3289,136.45,136.4,25.6583]
[1719419440538,20.0,136.45,136.41,7.3305]
[1719419442126,20.0,136.45,136.42,7.3301]
[1719419442836,27.3289,136.45,136.41,7.3305]
[1719419443541,20.0,136.45,136.42,7.3302]
[1719419443742,20.0,136.45,136.43,7.3295]
[1719419443922,27.3282,136.46,136.42,25.6556]
[1719419444734,20.0,136.46,136.42,25.6556]
[1719419444937,20.0,136.46,136.43,7.3296]
[1719419445640,25.24405404,136.5,136.42,36.819]
[1719419445936,20.0,136.49,136.44,7.3288]
[1719419446149,20.0,136.49,136.41,0.17]
[1719419446316,20.0,136.49,136.46,7.328]
[1719419446517,30.0,136.47,136.45,25.6501]
[1719419446720,27.3266,136.49,136.45,25.6501]
[1719419446933,20.0,136.49,136.46,7.328]
[1719419447245,20.0,136.49,136.47,25.6461]
[1719419447443,30.0,136.48,136.42,42.8107]
[1719419447623,30.0,136.48,136.46,7.3278]
[1719419447824,30.0,136.48,136.45,7.3284]
[1719419448224,30.0,136.48,136.44,25.6508]
[1719419448427,20.0,136.47,136.44,18.3218]
[1719419448742,20.0,136.47,136.42,36.6503]
[1719419448743,27.3281,136.47,136.42,7.3299]
[1719419449629,27.3281,136.47,136.43,7.3296]
[1719419449844,20.0,136.47,136.43,25.6539]
[1719419450424,20.0,136.47,136.44,7.3291]
[1719419450944,20.0,136.47,136.45,7.3286]
[1719419451146,20.0,136.47,136.46,7.3281]
[1719419451346,50.0,136.47,136.45,25.6494]
[1719419451652,50.0,136.47,136.46,7.3281]
[1719419451854,50.0,136.47,136.45,18.3214]
[1719419452054,50.0,136.47,136.46,7.3281]
[1719419452055,20.0,136.47,136.46,7.3281]
[1719419453626,20.0,136.47,136.45,25.6499]
[1719419453856,20.0,136.48,136.45,18.3214]
[1719419454646,27.3271,136.48,136.43,25.6538]
[1719419454845,27.3271,136.48,136.44,7.3291]
[1719419455127,20.0,136.48,136.44,7.3291]
[1719419455740,20.0,136.48,136.46,7.3281]
[1719419455943,20.0,136.49,136.46,7.3281]
[1719419457730,27.3266,136.49,136.45,25.6497]
[1719419459739,20.0,136.49,136.45,25.6497]
[1719419460267,20.0,136.49,136.45,18.3213]
[1719419460463,20.0,136.49,136.44,0.17]
[1719419460750,20.0,136.49,136.44,18.3219]
[1719419461138,20.0,136.49,136.45,7.3283]
[1719419461335,20.0,136.49,136.46,7.3281]
[1719419461555,20.0,136.49,136.44,18.3219]
[1719419461556,27.3265,136.49,136.44,18.3219]
[1719419461730,27.3265,136.49,136.44,25.6507]
[1719419462070,27.11,136.45,136.42,18.3256]
[1719419462242,27.11,136.43,136.39,25.66]
[1719419462564,18.6584,136.48,136.4,7.3313]
[1719419462565,27.11,136.41,136.4,7.3313]
[1719419462851,27.11,136.41,136.39,25.6603]
[1719419463256,27.11,136.4,136.39,18.3286]
[1719419463565,27.11,136.4,136.39,7.3319]
[1719419464443,7.3294,136.44,136.39,7.3319]
[1719419464645,20.0,136.43,136.39,7.3319]
[1719419464850,20.0,136.43,136.4,25.6591]
[1719419465358,23.5763,136.45,136.4,25.6591]
[1719419465359,20.0,136.44,136.4,25.6591]
[1719419465662,20.0,136.44,136.41,7.3308]
[1719419465840,27.3295,136.44,136.4,18.3282]
[1719419467157,27.3295,136.44,136.4,25.6595]
[1719419467456,20.0,136.44,136.4,25.6595]
[1719419468663,27.3293,136.44,136.4,25.6595]
[1719419469250,20.0,136.44,136.37,18.3311]
[1719419469447,20.0,136.44,136.37,25.6639]
[1719419469448,7.3306,136.42,136.37,25.6639]
[1719419469643,27.3312,136.41,136.37,18.3311]
[1719419469848,7.3312,136.41,136.37,25.664]
[1719419470044,7.3312,136.41,136.37,18.3311]
[1719419470359,20.0,136.4,136.37,25.6636]
[1719419470757,20.0,136.4,136.38,7.3324]
[1719419470953,20.0,136.42,136.39,18.3294]
[1719419471144,20.0,136.43,136.39,18.3294]
[1719419471470,20.0,136.43,136.4,7.3312]
[1719419471767,27.3292,136.44,136.4,7.3312]
[1719419472350,20.0,136.44,136.41,7.3308]
[1719419473669,23.1523,136.48,136.44,7.3292]
[1719419473868,23.1523,136.48,136.43,18.3242]
[1719419473869,20.0,136.47,136.43,18.3242]
[1719419474167,20.0,136.47,136.43,25.6537]
[1719419474670,20.0,136.47,136.43,18.3242]
[1719419474855,20.0,136.47,136.45,25.6499]
[1719419475061,20.0,136.49,136.45,18.3216]
[1719419475279,20.0,136.5,136.48,7.327]
[1719419475473,23.83268162,136.51,136.47,25.6464]
[1719419475669,27.3255,136.51,136.47,25.6464]
[1719419475868,7.326,136.5,136.45,7.3281]
[1719419476067,20.0,136.49,136.45,7.3281]
[1719419476271,20.0,136.49,136.44,18.4917]
[1719419476272,20.0,136.49,136.46,25.6481]
[1719419476657,27.3268,136.49,136.44,7.329]
[1719419477169,7.3272,136.48,136.44,7.329]
[1719419477366,27.3265,136.49,136.44,7.329]
[1719419477575,27.3265,136.49,136.44,7.3289]
[1719419477754,20.0,136.49,136.43,18.3238]
[1719419477959,7.3275,136.48,136.43,25.6533]
[1719419478265,38.3137,136.51,136.44,7.329]
[1719419478266,20.0,136.47,136.44,7.329]
[1719419478666,20.0,136.47,136.43,25.6533]
[1719419479056,20.0,136.47,136.4,25.6594]
[1719419479255,7.3288,136.45,136.4,25.6594]
[1719419479495,7.3288,136.45,136.41,7.3308]
[1719419480161,33.4326,136.47,136.38,6.4806]
[1719419480383,33.4326,136.47,136.37,18.3313]
[1719419480384,7.3299,136.43,136.39,7.3318]
[1719419480580,20.0,136.42,136.39,7.3318]
[1719419480780,20.0,136.42,136.4,7.3312]
[1719419481285,20.0,136.44,136.4,7.3312]
[1719419482385,20.0,136.44,136.42,7.3298]
[1719419482570,27.3284,136.46,136.41,25.6572]
[1719419483282,20.0,136.46,136.4,7.3312]
[1719419484274,7.3292,136.44,136.4,7.3312]
[1719419484572,20.0,136.43,136.4,7.3312]
[1719419484988,20.0,136.43,136.39,7.3318]
[1719419485309,27.3298,136.43,136.39,7.3319]
[1719419485980,20.0,136.43,136.4,7.3311]
[1719419486685,20.0,136.43,136.39,7.3318]
[1719419487062,27.3299,136.43,136.38,25.6622]
[1719419488086,20.0,136.43,136.39,7.3316]
[1719419488995,27.3299,136.43,136.39,7.3316]
[1719419489490,20.0,136.43,136.4,18.3282]
[1719419489693,27.3287,136.45,136.41,7.3306]
[1719419489867,20.0,136.45,136.41,7.3306]
[1719419490068,27.3287,136.45,136.41,7.3306]
[1719419490265,27.3287,136.45,136.4,25.6594]
[1719419491288,27.3287,136.45,136.41,7.3305]
[1719419491875,20.0,136.45,136.41,7.3305]
[1719419492081,27.3287,136.45,136.41,7.3305]
[1719419492296,20.0,136.45,136.42,18.3253]
[1719419492466,20.0,136.46,136.42,18.3253]
[1719419492889,20.0,136.46,136.43,7.3294]
[1719419493205,20.0,136.46,136.44,18.3225]
[1719419493369,20.0,136.46,136.44,25.6516]
[1719419493565,20.0,136.46,136.45,7.3286]
[1719419494689,20.0,136.46,136.44,25.6515]
[1719419494871,20.0,136.48,136.44,25.6515]
[1719419495073,20.0,136.5,136.47,7.3276]
[1719419495277,6.2115,136.53,136.49,7.3265]
[1719419495488,13.5359,136.53,136.48,25.6439]
[1719419495796,27.325,136.52,136.48,25.6439]
[1719419495986,27.325,136.52,136.48,18.3172]
[1719419496168,27.325,136.52,136.48,25.6441]
[1719419496496,20.0,136.52,136.49,7.3264]
[1719419496686,22.8784,136.54,136.5,7.3257]
[1719419497004,20.0,136.53,136.49,7.3264]
[1719419497298,27.3244,136.53,136.49,7.3264]
[1719419498595,20.0,136.53,136.49,7.3264]
[1719419499592,27.3244,136.53,136.48,25.6441]
[1719419500400,27.3244,136.53,136.49,7.3264]
[1719419500614,20.0,136.53,136.49,7.3264]
[1719419500976,27.3245,136.53,136.49,7.3264]
[1719419501383,27.3245,136.53,136.48,25.6442]
[1719419501872,20.0,136.53,136.5,18.3147]
[1719419502297,20.0,136.53,136.5,25.6403]
[1719419505277,20.0,136.53,136.49,7.3264]
[1719419505477,20.0,136.53,136.48,7.327]
[1719419505706,7.3253,136.52,136.47,25.6452]
[1719419505999,20.0,136.51,136.47,18.318]
[1719419506390,20.0,136.52,136.47,18.318]
[1719419507504,7.326,136.5,136.44,18.322]
[1719419507683,7.3255,136.51,136.46,7.328]
[1719419507999,20.0,136.5,136.46,25.6483]
[1719419508599,20.0,136.5,136.47,7.3274]
[1719419508909,20.0,136.5,136.46,25.6482]
[1719419509106,20.0,136.5,136.47,7.3275]
[1719419509573,20.0,136.5,136.46,18.3203]
[1719419509771,20.0,136.53,136.46,18.3203]
[1719419509995,7.3251,136.52,136.46,18.3203]
[1719419510206,20.0,136.51,136.46,18.3203]
[1719419510581,20.0,136.51,136.48,25.6441]
[1719419510798,20.0,136.52,136.48,18.3173]
[1719419511225,20.0,136.53,136.48,18.3173]
[1719419512075,27.3246,136.53,136.49,7.3264]
[1719419512273,24.33219002,136.57,136.49,7.3264]
[1719419512274,15.8702,136.58,136.49,36.6317]
[1719419512489,15.8702,136.62,136.58,7.3212]
[1719419512701,15.8702,136.62,136.57,18.3051]
[1719419512876,15.8702,136.62,136.59,7.3209]
[1719419513985,15.8702,136.62,136.57,18.3051]
[1719419514177,15.8702,136.62,136.55,7.3231]
[1719419514374,7.3207,136.6,136.56,7.3227]
[1719419514783,7.3202,136.61,136.56,7.3227]
[1719419515333,20.0,136.6,136.56,7.3227]
[1719419516077,27.3206,136.6,136.56,7.3227]
[1719419516485,20.0,136.6,136.56,7.3227]
[1719419517210,20.0,136.6,136.57,7.322]
[1719419517411,20.0,136.61,136.57,7.322]
[1719419519009,27.3201,136.61,136.57,7.322]
[1719419519212,7.3206,136.6,136.56,25.6289]
[1719419519390,20.0,136.59,136.56,25.6289]
[1719419519907,20.0,136.59,136.53,18.3101]
[1719419520081,7.3217,136.58,136.53,25.6341]
[1719419520397,20.0,136.57,136.54,7.3236]
[1719419520810,20.0,136.57,136.55,7.3233]
[1719419520990,20.0,136.58,136.55,7.3233]